[Event "Late-Titled-Tuesday-Blitz-June-04-2024"]
[Site "Chess.com"]
[Date "2024.06.04"]
[Round "2"]
[White "Chessdemon2019"]
[Black "gamboajp"]
[Result "0-1"]
[WhiteElo "2413"]
[BlackElo "2070"]
[TimeControl "180+1"]
[EndTime "14:17:11 PDT"]
[Termination "gamboajp won by resignation"]

1. e4 {[%clk 0:02:57.6]} 1... e6 {[%clk 0:03:00.4]} 2. d4 {[%clk 0:02:57.7]}
2... d5 {[%clk 0:03:01.1]} 3. Nd2 {[%clk 0:02:57.9]} 3... c5 {[%clk 0:03:00.1]}
4. exd5 {[%clk 0:02:57.6]} 4... Qxd5 {[%clk 0:03:00.3]} 5. Ngf3 {[%clk
0:02:53.6]} 5... cxd4 {[%clk 0:03:00.5]} 6. Bc4 {[%clk 0:02:53.6]} 6... Qd6
{[%clk 0:03:01.2]} 7. Nb3 {[%clk 0:02:53.9]} 7... Nf6 {[%clk 0:03:01.8]} 8.
Nbxd4 {[%clk 0:02:52]} 8... Qb4+ {[%clk 0:02:57.6]} 9. Nd2 {[%clk 0:02:45.3]}
9... a6 {[%clk 0:02:50.8]} 10. c3 {[%clk 0:02:42.7]} 10... Qd6 {[%clk
0:02:48.2]} 11. a4 {[%clk 0:02:37.1]} 11... Bd7 {[%clk 0:02:45.8]} 12. O-O
{[%clk 0:02:35.6]} 12... Nc6 {[%clk 0:02:43.4]} 13. N2f3 {[%clk 0:02:33.4]}
13... Nxd4 {[%clk 0:02:37.8]} 14. Nxd4 {[%clk 0:02:33.2]} 14... Qc7 {[%clk
0:02:38.4]} 15. Qb3 {[%clk 0:02:22.7]} 15... Bd6 {[%clk 0:02:30.6]} 16. h3
{[%clk 0:02:20]} 16... Rc8 {[%clk 0:02:30.5]} 17. Bd3 {[%clk 0:02:16.2]} 17...
h6 {[%clk 0:02:16.5]} 18. Bd2 {[%clk 0:02:09.4]} 18... O-O {[%clk 0:02:16.4]}
19. Rae1 {[%clk 0:01:53.7]} 19... Rfe8 {[%clk 0:02:10.6]} 20. f4 {[%clk
0:01:50]} 20... Nd5 {[%clk 0:01:54.1]} 21. f5 {[%clk 0:01:43.3]} 21... Bc5
{[%clk 0:01:18.3]} 22. fxe6 {[%clk 0:01:42]} 22... Bxe6 {[%clk 0:01:11.8]} 23.
Qd1 {[%clk 0:01:10.9]} 23... Bxd4+ {[%clk 0:01:06.6]} 24. cxd4 {[%clk
0:01:11.1]} 24... Qg3 {[%clk 0:01:06.7]} 25. Rf3 {[%clk 0:01:07.3]} 25... Qh4
{[%clk 0:00:59.7]} 26. Ref1 {[%clk 0:01:03.4]} 26... Qxd4+ {[%clk 0:00:59]} 27.
Kh1 {[%clk 0:00:32.1]} 27... Qxb2 {[%clk 0:00:58.8]} 28. Rg3 {[%clk 0:00:23.4]}
28... Kh8 {[%clk 0:00:58.2]} 29. Bxh6 {[%clk 0:00:17.6]} 29... gxh6 {[%clk
0:00:43.2]} 30. Qh5 {[%clk 0:00:17.4]} 30... Qd2 {[%clk 0:00:42.6]} 31. Qh4
{[%clk 0:00:11.2]} 31... Rc1 {[%clk 0:00:36.2]} 32. Qd4+ {[%clk 0:00:11]} 32...
f6 {[%clk 0:00:34.3]} 33. Rxc1 {[%clk 0:00:08.6]} 33... Qxc1+ {[%clk 0:00:34.4]}
34. Kh2 {[%clk 0:00:09.1]} 34... Qf4 {[%clk 0:00:34.4]} 35. Qc5 {[%clk
0:00:06.3]} 35... Rg8 {[%clk 0:00:25.7]} 0-1

[Event "Late-Titled-Tuesday-Blitz-June-04-2024"]
[Site "Chess.com"]
[Date "2024.06.04"]
[Round "2"]
[White "grzechu96"]
[Black "yobdc"]
[Result "1-0"]
[WhiteElo "2800"]
[BlackElo "2537"]
[TimeControl "180+1"]
[EndTime "14:17:13 PDT"]
[Termination "grzechu96 won by resignation"]

1. e4 {[%clk 0:03:00.9]} 1... e6 {[%clk 0:02:00.7]} 2. d4 {[%clk 0:03:00.5]}
2... d5 {[%clk 0:02:00.7]} 3. e5 {[%clk 0:02:58.3]} 3... c5 {[%clk 0:02:00.6]}
4. c3 {[%clk 0:02:58.9]} 4... Bd7 {[%clk 0:02:01]} 5. Nf3 {[%clk 0:02:55.3]}
5... Nc6 {[%clk 0:02:01.2]} 6. Be2 {[%clk 0:02:53.7]} 6... f6 {[%clk 0:01:58]}
7. O-O {[%clk 0:02:49.6]} 7... Qc7 {[%clk 0:01:57.9]} 8. Bf4 {[%clk 0:02:48.7]}
8... Nge7 {[%clk 0:01:53.7]} 9. Re1 {[%clk 0:02:28.9]} 9... Ng6 {[%clk
0:01:33.5]} 10. Bg3 {[%clk 0:02:27.4]} 10... f5 {[%clk 0:01:29.4]} 11. h4 {[%clk
0:02:18.9]} 11... Be7 {[%clk 0:01:28]} 12. h5 {[%clk 0:02:18.1]} 12... Nf8
{[%clk 0:01:28.2]} 13. c4 {[%clk 0:02:11.2]} 13... Nxd4 {[%clk 0:01:05.9]} 14.
Nxd4 {[%clk 0:01:53.9]} 14... cxd4 {[%clk 0:01:06.8]} 15. cxd5 {[%clk
0:01:54.1]} 15... f4 {[%clk 0:01:02.9]} 16. d6 {[%clk 0:01:46.5]} 16... Bxd6
{[%clk 0:00:58.7]} 17. exd6 {[%clk 0:01:47.4]} 17... Qxd6 {[%clk 0:00:59.5]} 18.
Bh2 {[%clk 0:01:43]} 18... e5 {[%clk 0:00:50.4]} 19. Nd2 {[%clk 0:01:40.1]}
19... Ne6 {[%clk 0:00:44.5]} 20. Nc4 {[%clk 0:01:37.4]} 20... Qc7 {[%clk
0:00:38.5]} 21. Bf1 {[%clk 0:01:23]} 21... O-O {[%clk 0:00:26.8]} 22. Nxe5
{[%clk 0:01:22.8]} 22... Rae8 {[%clk 0:00:27.1]} 23. Nxd7 {[%clk 0:01:22.3]}
23... Qxd7 {[%clk 0:00:27.5]} 24. Bc4 {[%clk 0:01:22.3]} 24... Kh8 {[%clk
0:00:27.8]} 25. Qg4 {[%clk 0:01:22.5]} 25... Rf6 {[%clk 0:00:18.5]} 26. Bxf4
{[%clk 0:00:40.8]} 26... Rxf4 {[%clk 0:00:14.4]} 27. Bxe6 {[%clk 0:00:41]} 27...
Qc7 {[%clk 0:00:13.3]} 28. Qg3 {[%clk 0:00:35.4]} 28... Ref8 {[%clk 0:00:13.2]}
29. Bd5 {[%clk 0:00:29.6]} 29... Qa5 {[%clk 0:00:11.3]} 30. Bf3 {[%clk
0:00:28.9]} 30... Qf5 {[%clk 0:00:07.8]} 31. Rad1 {[%clk 0:00:28.2]} 31... d3
{[%clk 0:00:08.2]} 32. Rxd3 {[%clk 0:00:26.7]} 32... h6 {[%clk 0:00:07.6]} 33.
Rde3 {[%clk 0:00:26]} 33... Qf7 {[%clk 0:00:05.7]} 34. Qg6 {[%clk 0:00:25.6]}
34... Qc7 {[%clk 0:00:05.3]} 35. Re8 {[%clk 0:00:25.5]} 35... Rf7 {[%clk
0:00:01.6]} 36. Rxf8+ {[%clk 0:00:25]} 36... Rxf8 {[%clk 0:00:02.5]} 37. Be4
{[%clk 0:00:24.9]} 1-0

[Event "Late-Titled-Tuesday-Blitz-June-04-2024"]
[Site "Chess.com"]
[Date "2024.06.04"]
[Round "2"]
[White "NovakRatko"]
[Black "Flawless_Fighter"]
[Result "0-1"]
[WhiteElo "2308"]
[BlackElo "2674"]
[TimeControl "180+1"]
[EndTime "14:17:16 PDT"]
[Termination "Flawless_Fighter won on time"]

1. d4 {[%clk 0:02:59.9]} 1... Nf6 {[%clk 0:02:59.7]} 2. c4 {[%clk 0:03:00.2]}
2... e6 {[%clk 0:02:59.9]} 3. Bg5 {[%clk 0:03:00.6]} 3... Be7 {[%clk 0:02:57.2]}
4. Nc3 {[%clk 0:03:00]} 4... h6 {[%clk 0:02:55.2]} 5. Bxf6 {[%clk 0:02:52.8]}
5... Bxf6 {[%clk 0:02:54.4]} 6. e4 {[%clk 0:02:53.1]} 6... g6 {[%clk 0:02:54.2]}
7. e5 {[%clk 0:02:52.9]} 7... Bg7 {[%clk 0:02:54.4]} 8. f4 {[%clk 0:02:53.6]}
8... d6 {[%clk 0:02:54.4]} 9. Nf3 {[%clk 0:02:53.2]} 9... c5 {[%clk 0:02:54.2]}
10. dxc5 {[%clk 0:02:51.9]} 10... dxc5 {[%clk 0:02:51.3]} 11. Qxd8+ {[%clk
0:02:39.5]} 11... Kxd8 {[%clk 0:02:52.2]} 12. Nb5 {[%clk 0:02:40.1]} 12... Bd7
{[%clk 0:02:44.6]} 13. Nd6 {[%clk 0:02:38.2]} 13... Ke7 {[%clk 0:02:42.6]} 14.
Nxb7 {[%clk 0:02:36.7]} 14... Rc8 {[%clk 0:02:37]} 15. Nd6 {[%clk 0:02:26.2]}
15... Rc7 {[%clk 0:02:36.9]} 16. Rd1 {[%clk 0:02:23.7]} 16... Bc6 {[%clk
0:02:36.4]} 17. Be2 {[%clk 0:02:22.7]} 17... Nd7 {[%clk 0:02:36.2]} 18. O-O
{[%clk 0:02:19.9]} 18... Rb8 {[%clk 0:02:35.3]} 19. b3 {[%clk 0:02:19.9]} 19...
a5 {[%clk 0:02:34.9]} 20. Nb5 {[%clk 0:02:12.8]} 20... Bxb5 {[%clk 0:02:35]} 21.
cxb5 {[%clk 0:02:12.9]} 21... Nb6 {[%clk 0:02:30.7]} 22. Rd6 {[%clk 0:02:10.6]}
22... Nd5 {[%clk 0:02:29]} 23. g3 {[%clk 0:01:59.8]} 23... Nc3 {[%clk 0:02:27]}
24. Bc4 {[%clk 0:01:57.3]} 24... Nxb5 {[%clk 0:02:20.8]} 25. Bxb5 {[%clk
0:01:52.7]} 25... Rxb5 {[%clk 0:02:20.2]} 26. Rc1 {[%clk 0:01:53]} 26... g5
{[%clk 0:02:12.9]} 27. Ra6 {[%clk 0:01:32.8]} 27... gxf4 {[%clk 0:02:11.2]} 28.
gxf4 {[%clk 0:01:32.6]} 28... h5 {[%clk 0:02:05.3]} 29. Nd4 {[%clk 0:01:30.5]}
29... Rbb7 {[%clk 0:01:48]} 30. Nc6+ {[%clk 0:01:30]} 30... Ke8 {[%clk
0:01:31.5]} 31. Ra8+ {[%clk 0:01:17.5]} 31... Kd7 {[%clk 0:01:30.8]} 32. Nb8+
{[%clk 0:01:17.8]} 32... Ke7 {[%clk 0:01:26.7]} 33. Na6 {[%clk 0:01:13.7]} 33...
Rc6 {[%clk 0:01:25.2]} 34. Rxc5 {[%clk 0:01:00.5]} 34... Rbb6 {[%clk 0:01:15.1]}
35. Ra7+ {[%clk 0:00:58]} 35... Kf8 {[%clk 0:01:14]} 36. Ra8+ {[%clk 0:00:56]}
36... Ke7 {[%clk 0:01:14]} 37. Rxc6 {[%clk 0:00:50.5]} 37... Rxc6 {[%clk
0:01:14]} 38. Ra7+ {[%clk 0:00:45.6]} 38... Kf8 {[%clk 0:01:13.2]} 39. Nb8
{[%clk 0:00:29]} 39... Rc1+ {[%clk 0:01:00.7]} 40. Kg2 {[%clk 0:00:29.2]} 40...
Rc2+ {[%clk 0:01:01.4]} 41. Kg3 {[%clk 0:00:29.4]} 41... Rxa2 {[%clk 0:01:01.5]}
42. Nd7+ {[%clk 0:00:28.4]} 42... Kg8 {[%clk 0:01:00.3]} 43. Nc5 {[%clk
0:00:09.9]} 43... Ra3 {[%clk 0:00:53.7]} 44. Ra8+ {[%clk 0:00:09.6]} 44... Kh7
{[%clk 0:00:53.6]} 45. Ra7 {[%clk 0:00:10.5]} 45... Kg6 {[%clk 0:00:53.1]} 46.
Kh4 {[%clk 0:00:01.8]} 46... Bf8 {[%clk 0:00:52.4]} 0-1

[Event "Late-Titled-Tuesday-Blitz-June-04-2024"]
[Site "Chess.com"]
[Date "2024.06.04"]
[Round "2"]
[White "igorkovalenko"]
[Black "Noki102"]
[Result "1-0"]
[WhiteElo "3009"]
[BlackElo "2519"]
[TimeControl "180+1"]
[EndTime "14:17:16 PDT"]
[Termination "igorkovalenko won by resignation"]

1. e4 {[%clk 0:03:00.3]} 1... e5 {[%clk 0:02:59.7]} 2. Nf3 {[%clk 0:03:00.5]}
2... Nc6 {[%clk 0:02:59.9]} 3. Bb5 {[%clk 0:03:01]} 3... a6 {[%clk 0:02:58.8]}
4. Bxc6 {[%clk 0:03:01.5]} 4... dxc6 {[%clk 0:02:58.1]} 5. O-O {[%clk
0:03:02.4]} 5... Qf6 {[%clk 0:02:58.4]} 6. d4 {[%clk 0:03:02.4]} 6... exd4
{[%clk 0:02:58.5]} 7. Bg5 {[%clk 0:03:03]} 7... Qd6 {[%clk 0:02:58.5]} 8. Nxd4
{[%clk 0:03:02.8]} 8... Bd7 {[%clk 0:02:53.1]} 9. Bh4 {[%clk 0:03:03.1]} 9...
Qh6 {[%clk 0:02:43.5]} 10. Bg3 {[%clk 0:03:02.6]} 10... O-O-O {[%clk 0:02:43.5]}
11. Qf3 {[%clk 0:02:50.7]} 11... Nf6 {[%clk 0:02:31.8]} 12. Nf5 {[%clk
0:02:49.5]} 12... Qg6 {[%clk 0:02:28.4]} 13. Qf4 {[%clk 0:02:48.7]} 13... Ne8
{[%clk 0:02:18.2]} 14. Nc3 {[%clk 0:02:47.8]} 14... Bxf5 {[%clk 0:02:00.1]} 15.
exf5 {[%clk 0:02:47.8]} 15... Qf6 {[%clk 0:01:57.7]} 16. Rad1 {[%clk 0:02:35.4]}
16... Rxd1 {[%clk 0:01:47.3]} 17. Rxd1 {[%clk 0:02:34.9]} 17... Bd6 {[%clk
0:01:47.7]} 18. Qf3 {[%clk 0:02:25.7]} 18... Bxg3 {[%clk 0:01:45.8]} 19. hxg3
{[%clk 0:02:26.6]} 19... Nd6 {[%clk 0:01:45.5]} 20. g4 {[%clk 0:02:26.8]} 20...
Re8 {[%clk 0:01:42.5]} 21. b3 {[%clk 0:02:26.7]} 21... h6 {[%clk 0:01:29.9]} 22.
g3 {[%clk 0:02:27]} 22... Qe5 {[%clk 0:01:18.7]} 23. Kg2 {[%clk 0:02:27.1]}
23... Kb8 {[%clk 0:01:13.1]} 24. Rd3 {[%clk 0:02:18.8]} 24... Qc5 {[%clk
0:01:10.7]} 25. Qf4 {[%clk 0:02:12.2]} 25... Nb5 {[%clk 0:01:04.9]} 26. Nxb5
{[%clk 0:02:06.6]} 26... cxb5 {[%clk 0:01:01.7]} 27. Rd2 {[%clk 0:02:00.9]}
27... Qc6+ {[%clk 0:00:59.7]} 28. Qf3 {[%clk 0:01:59.9]} 28... Qxf3+ {[%clk
0:00:53.2]} 29. Kxf3 {[%clk 0:02:00.8]} 29... Kc8 {[%clk 0:00:53.1]} 30. Kg2
{[%clk 0:01:43.2]} 30... Rd8 {[%clk 0:00:52.1]} 31. Re2 {[%clk 0:01:43.2]} 31...
Kd7 {[%clk 0:00:52.1]} 32. f4 {[%clk 0:01:42.9]} 32... Re8 {[%clk 0:00:52]} 33.
Rd2+ {[%clk 0:01:42.8]} 33... Ke7 {[%clk 0:00:51.9]} 34. g5 {[%clk 0:01:38.9]}
34... hxg5 {[%clk 0:00:41.4]} 35. fxg5 {[%clk 0:01:39.8]} 35... a5 {[%clk
0:00:36.8]} 36. Kf3 {[%clk 0:01:32.4]} 36... Rh8 {[%clk 0:00:34.6]} 37. Re2+
{[%clk 0:01:31.1]} 37... Kd7 {[%clk 0:00:34.8]} 38. f6 {[%clk 0:01:29]} 38...
gxf6 {[%clk 0:00:25.3]} 39. gxf6 {[%clk 0:01:29.9]} 39... Re8 {[%clk 0:00:25.9]}
40. Rxe8 {[%clk 0:01:29.3]} 40... Kxe8 {[%clk 0:00:26.8]} 41. Ke4 {[%clk
0:01:29.4]} 41... Kf8 {[%clk 0:00:13.6]} 42. Kf5 {[%clk 0:01:25.4]} 42... Kg8
{[%clk 0:00:13.7]} 43. Kg5 {[%clk 0:01:24.5]} 43... Kh7 {[%clk 0:00:14]} 44. g4
{[%clk 0:01:24.4]} 44... a4 {[%clk 0:00:13.8]} 45. Kh5 {[%clk 0:01:24.7]} 45...
axb3 {[%clk 0:00:12.8]} 46. axb3 {[%clk 0:01:24.7]} 46... b4 {[%clk 0:00:09.7]}
47. Kg5 {[%clk 0:01:24.8]} 47... b5 {[%clk 0:00:04.9]} 48. Kh5 {[%clk
0:01:25.1]} 48... c5 {[%clk 0:00:05.2]} 49. Kg5 {[%clk 0:01:25.5]} 49... c4
{[%clk 0:00:05.3]} 50. Kh5 {[%clk 0:01:25.5]} 50... cxb3 {[%clk 0:00:02.5]} 51.
cxb3 {[%clk 0:01:26.4]} 51... Kg8 {[%clk 0:00:02.7]} 52. Kh6 {[%clk 0:01:26.6]}
52... Kh8 {[%clk 0:00:03.2]} 53. g5 {[%clk 0:01:26.8]} 53... Kg8 {[%clk
0:00:03.8]} 54. g6 {[%clk 0:01:27.2]} 54... Kh8 {[%clk 0:00:02.7]} 55. g7+
{[%clk 0:01:23.3]} 55... Kg8 {[%clk 0:00:03]} 56. Kg5 {[%clk 0:01:24.2]} 56...
Kh7 {[%clk 0:00:01.9]} 57. Kf5 {[%clk 0:01:25.1]} 57... Kg8 {[%clk 0:00:02.1]}
58. Ke5 {[%clk 0:01:25.6]} 1-0

[Event "Late-Titled-Tuesday-Blitz-June-04-2024"]
[Site "Chess.com"]
[Date "2024.06.04"]
[Round "2"]
[White "Chessdude1987"]
[Black "Rodalquilar"]
[Result "0-1"]
[WhiteElo "2397"]
[BlackElo "2789"]
[TimeControl "180+1"]
[EndTime "14:17:16 PDT"]
[Termination "Rodalquilar won on time"]

1. e4 {[%clk 0:03:00.9]} 1... d5 {[%clk 0:03:00.2]} 2. exd5 {[%clk 0:02:57.8]}
2... Qxd5 {[%clk 0:03:01.1]} 3. Nc3 {[%clk 0:02:55.8]} 3... Qa5 {[%clk
0:03:00.9]} 4. Bc4 {[%clk 0:02:54]} 4... Nf6 {[%clk 0:03:00.9]} 5. d4 {[%clk
0:02:48.6]} 5... Bg4 {[%clk 0:02:48.2]} 6. f3 {[%clk 0:02:46.3]} 6... Bf5 {[%clk
0:02:48.3]} 7. Ne2 {[%clk 0:02:46.1]} 7... Nc6 {[%clk 0:02:48]} 8. g4 {[%clk
0:02:19.7]} 8... Bg6 {[%clk 0:02:43.3]} 9. g5 {[%clk 0:02:11.3]} 9... Nh5 {[%clk
0:02:37.6]} 10. Be3 {[%clk 0:02:04.1]} 10... O-O-O {[%clk 0:02:36.6]} 11. Qd2
{[%clk 0:02:00.7]} 11... e5 {[%clk 0:02:36.4]} 12. d5 {[%clk 0:01:51.5]} 12...
Nb4 {[%clk 0:02:35.3]} 13. Bb3 {[%clk 0:01:51.1]} 13... c6 {[%clk 0:01:57.6]}
14. O-O-O {[%clk 0:01:12.2]} 14... cxd5 {[%clk 0:01:57.5]} 15. a3 {[%clk
0:01:12.3]} 15... d4 {[%clk 0:01:45]} 16. axb4 {[%clk 0:01:06.9]} 16... Bxb4
{[%clk 0:01:42.8]} 17. Kb1 {[%clk 0:00:48.3]} 17... dxc3 {[%clk 0:01:28.3]} 18.
Qc1 {[%clk 0:00:47.7]} 18... cxb2 {[%clk 0:01:08.7]} 19. Qxb2 {[%clk 0:00:47.4]}
19... Nf4 {[%clk 0:01:09]} 20. Nxf4 {[%clk 0:00:36.7]} 20... exf4 {[%clk
0:01:09.3]} 21. Bxf4 {[%clk 0:00:36.7]} 21... Bc3 {[%clk 0:01:06.1]} 22. Qa2
{[%clk 0:00:35.2]} 22... Qb4 {[%clk 0:01:05.7]} 23. Be3 {[%clk 0:00:12.3]} 23...
a5 {[%clk 0:00:51.3]} 24. Kc1 {[%clk 0:00:08.5]} 24... Rhe8 {[%clk 0:00:48.1]}
25. Bf2 {[%clk 0:00:03.2]} 25... b5 {[%clk 0:00:47.7]} 26. Rhf1 {[%clk
0:00:01.8]} 26... a4 {[%clk 0:00:45.7]} 27. Rxd8+ {[%clk 0:00:02.3]} 27... Rxd8
{[%clk 0:00:44.9]} 28. Rd1 {[%clk 0:00:03.2]} 28... Rxd1+ {[%clk 0:00:39.8]} 29.
Kxd1 {[%clk 0:00:03.7]} 29... Qd6+ {[%clk 0:00:24.4]} 30. Bd5 {[%clk 0:00:02.8]}
30... Bf5 {[%clk 0:00:25]} 31. Ke2 {[%clk 0:00:02.2]} 31... Qe5+ {[%clk
0:00:21.2]} 32. Kf1 {[%clk 0:00:02.4]} 32... Bh3+ {[%clk 0:00:21.7]} 33. Kg1
{[%clk 0:00:02.4]} 33... Qxg5+ {[%clk 0:00:22.2]} 34. Bg3 {[%clk 0:00:02.3]}
34... Bd4+ {[%clk 0:00:22.3]} 35. Kh1 {[%clk 0:00:01.7]} 35... Qc1+ {[%clk
0:00:22.6]} 0-1

[Event "Late-Titled-Tuesday-Blitz-June-04-2024"]
[Site "Chess.com"]
[Date "2024.06.04"]
[Round "2"]
[White "mfschulz"]
[Black "almaguerjm"]
[Result "0-1"]
[WhiteElo "2240"]
[BlackElo "2497"]
[TimeControl "180+1"]
[EndTime "14:17:18 PDT"]
[Termination "almaguerjm won on time"]

1. d4 {[%clk 0:02:59.4]} 1... d5 {[%clk 0:02:57.7]} 2. Bg5 {[%clk 0:02:58.8]}
2... c5 {[%clk 0:02:47.4]} 3. Nc3 {[%clk 0:02:57.4]} 3... Nc6 {[%clk 0:02:46]}
4. e3 {[%clk 0:02:56.1]} 4... h6 {[%clk 0:02:39.7]} 5. Bh4 {[%clk 0:02:55.8]}
5... g5 {[%clk 0:02:23.2]} 6. Bg3 {[%clk 0:02:54.9]} 6... Bg7 {[%clk 0:02:23.4]}
7. dxc5 {[%clk 0:02:50.4]} 7... Qa5 {[%clk 0:02:17.9]} 8. Ne2 {[%clk 0:02:33.9]}
8... Nf6 {[%clk 0:02:05.7]} 9. Qd2 {[%clk 0:02:19]} 9... Qxc5 {[%clk 0:02:01.8]}
10. O-O-O {[%clk 0:02:18.6]} 10... Be6 {[%clk 0:01:23.7]} 11. Nd4 {[%clk
0:02:18.2]} 11... O-O {[%clk 0:01:19.9]} 12. h4 {[%clk 0:02:11.1]} 12... Rac8
{[%clk 0:01:13.1]} 13. Nxe6 {[%clk 0:02:08.3]} 13... fxe6 {[%clk 0:01:12.3]} 14.
hxg5 {[%clk 0:02:08.2]} 14... hxg5 {[%clk 0:01:10.4]} 15. Bd3 {[%clk 0:02:01.9]}
15... Kf7 {[%clk 0:00:52.7]} 16. f4 {[%clk 0:01:58]} 16... gxf4 {[%clk
0:00:45.4]} 17. Bxf4 {[%clk 0:01:56.8]} 17... Rh8 {[%clk 0:00:44.5]} 18. Rxh8
{[%clk 0:01:44]} 18... Rxh8 {[%clk 0:00:45.4]} 19. e4 {[%clk 0:01:42.9]} 19...
d4 {[%clk 0:00:42.1]} 20. Na4 {[%clk 0:01:35.3]} 20... Qb4 {[%clk 0:00:41.3]}
21. Qxb4 {[%clk 0:01:32.9]} 21... Nxb4 {[%clk 0:00:42.2]} 22. a3 {[%clk
0:01:16.6]} 22... Nxd3+ {[%clk 0:00:38.4]} 23. cxd3 {[%clk 0:01:14.1]} 23... Ng4
{[%clk 0:00:37]} 24. Nc5 {[%clk 0:01:10.9]} 24... b6 {[%clk 0:00:32]} 25. Nb3
{[%clk 0:01:04.8]} 25... e5 {[%clk 0:00:32.4]} 26. Bd2 {[%clk 0:00:50.4]} 26...
Kg6 {[%clk 0:00:29.9]} 27. Bb4 {[%clk 0:00:48.3]} 27... Bf6 {[%clk 0:00:28.3]}
28. Nd2 {[%clk 0:00:47.6]} 28... Nf2 {[%clk 0:00:28.1]} 29. Rf1 {[%clk
0:00:34.2]} 29... Nxd3+ {[%clk 0:00:27.5]} 30. Kc2 {[%clk 0:00:34.4]} 30... Nf4
{[%clk 0:00:20.6]} 31. Nf3 {[%clk 0:00:28.1]} 31... Rc8+ {[%clk 0:00:20.3]} 32.
Kb3 {[%clk 0:00:25.8]} 32... Nd3 {[%clk 0:00:19.7]} 33. Nd2 {[%clk 0:00:13.1]}
33... b5 {[%clk 0:00:19.2]} 34. Ba5 {[%clk 0:00:07.7]} 34... e6 {[%clk
0:00:16.6]} 35. g4 {[%clk 0:00:03]} 35... Be7 {[%clk 0:00:16.8]} 0-1

[Event "Late-Titled-Tuesday-Blitz-June-04-2024"]
[Site "Chess.com"]
[Date "2024.06.04"]
[Round "2"]
[White "xasid81"]
[Black "HansOnTwitch"]
[Result "0-1"]
[WhiteElo "2631"]
[BlackElo "3127"]
[TimeControl "180+1"]
[EndTime "14:17:19 PDT"]
[Termination "HansOnTwitch won on time"]

1. d4 {[%clk 0:03:00.9]} 1... Nf6 {[%clk 0:02:55.8]} 2. Nf3 {[%clk 0:03:00.8]}
2... d5 {[%clk 0:02:55.8]} 3. c3 {[%clk 0:03:01]} 3... Bf5 {[%clk 0:02:55.1]} 4.
Qb3 {[%clk 0:03:00.4]} 4... b6 {[%clk 0:02:53.6]} 5. Bf4 {[%clk 0:02:59.2]} 5...
e6 {[%clk 0:02:53.5]} 6. Nbd2 {[%clk 0:02:59]} 6... Bd6 {[%clk 0:02:53.9]} 7.
Bxd6 {[%clk 0:02:59]} 7... cxd6 {[%clk 0:02:54.8]} 8. e3 {[%clk 0:02:58.9]} 8...
O-O {[%clk 0:02:54]} 9. Be2 {[%clk 0:02:58.9]} 9... h6 {[%clk 0:02:53.6]} 10.
O-O {[%clk 0:02:58.7]} 10... Nc6 {[%clk 0:02:54.3]} 11. Rfc1 {[%clk 0:02:58.4]}
11... e5 {[%clk 0:02:51.9]} 12. Qa4 {[%clk 0:02:54.8]} 12... Bd7 {[%clk
0:02:51.4]} 13. Bb5 {[%clk 0:02:54.1]} 13... Qe8 {[%clk 0:02:50.2]} 14. Bxc6
{[%clk 0:02:34]} 14... Bxc6 {[%clk 0:02:49.9]} 15. Qa3 {[%clk 0:02:30.4]} 15...
Qe6 {[%clk 0:02:50.3]} 16. h3 {[%clk 0:02:25.8]} 16... Rfc8 {[%clk 0:02:49]} 17.
b3 {[%clk 0:02:06.2]} 17... a5 {[%clk 0:02:48]} 18. Qb2 {[%clk 0:02:04.4]} 18...
e4 {[%clk 0:02:44.9]} 19. Nh2 {[%clk 0:02:03.8]} 19... b5 {[%clk 0:02:44.2]} 20.
a3 {[%clk 0:01:54.9]} 20... Bd7 {[%clk 0:02:42.6]} 21. Qa2 {[%clk 0:01:46.1]}
21... Rab8 {[%clk 0:02:38.3]} 22. c4 {[%clk 0:01:42.6]} 22... bxc4 {[%clk
0:02:36.2]} 23. bxc4 {[%clk 0:01:43.5]} 23... dxc4 {[%clk 0:02:34.9]} 24. Rxc4
{[%clk 0:01:42.6]} 24... a4 {[%clk 0:02:31]} 25. Rxc8+ {[%clk 0:01:38.6]} 25...
Rxc8 {[%clk 0:02:31.9]} 26. Qb2 {[%clk 0:01:32.8]} 26... Qd5 {[%clk 0:02:27.9]}
27. Rc1 {[%clk 0:01:30]} 27... Rxc1+ {[%clk 0:02:20.6]} 28. Qxc1 {[%clk
0:01:30.9]} 28... Qg5 {[%clk 0:02:20.2]} 29. Kh1 {[%clk 0:01:27.1]} 29... Qb5
{[%clk 0:02:19.7]} 30. Nhf1 {[%clk 0:01:22.6]} 30... Qd3 {[%clk 0:02:09.5]} 31.
Kg1 {[%clk 0:01:12.8]} 31... h5 {[%clk 0:02:08]} 32. Nc4 {[%clk 0:01:02.5]}
32... Nd5 {[%clk 0:01:57.7]} 33. Nxd6 {[%clk 0:00:46.2]} 33... Nc3 {[%clk
0:01:57.9]} 34. Qd2 {[%clk 0:00:24.3]} 34... Be6 {[%clk 0:01:12.5]} 35. Qxd3
{[%clk 0:00:20.6]} 35... exd3 {[%clk 0:01:13.4]} 36. Nd2 {[%clk 0:00:20.8]}
36... Kf8 {[%clk 0:01:13.3]} 37. f3 {[%clk 0:00:19]} 37... Ke7 {[%clk 0:01:13]}
38. N6e4 {[%clk 0:00:16.9]} 38... Nb5 {[%clk 0:01:11.3]} 39. Nc5 {[%clk
0:00:15.2]} 39... Nxa3 {[%clk 0:01:09.4]} 40. Nxa4 {[%clk 0:00:14.7]} 40... Nc4
{[%clk 0:01:02]} 41. Nxc4 {[%clk 0:00:10.9]} 41... Bxc4 {[%clk 0:01:02.9]} 42.
Nb2 {[%clk 0:00:10.4]} 42... d2 {[%clk 0:01:02.3]} 43. Kf2 {[%clk 0:00:09.9]}
43... f5 {[%clk 0:01:02.9]} 44. e4 {[%clk 0:00:09.3]} 44... f4 {[%clk
0:01:02.1]} 45. Nd1 {[%clk 0:00:05.9]} 45... h4 {[%clk 0:00:54.8]} 46. Nb2
{[%clk 0:00:05.2]} 46... Bb5 {[%clk 0:00:53.1]} 47. Nd1 {[%clk 0:00:03.7]} 47...
Kd6 {[%clk 0:00:53.6]} 48. Nc3 {[%clk 0:00:03.3]} 48... Bc4 {[%clk 0:00:53.7]}
49. Nd1 {[%clk 0:00:02.3]} 49... Kc6 {[%clk 0:00:54.2]} 50. d5+ {[%clk
0:00:01.9]} 50... Kc5 {[%clk 0:00:54.2]} 0-1